Cogmind - Beta 11.1 @@@ ROGUE MODE // 2022.05.04 @ 14:28:01 Player: Decinym Result: Destroyed by 8R-AWN with 8R-AWN's Boregun Performance ------------- Evolutions (1) 500 Regions Visited (5) 1000 Robots Destroyed (41) 205 Value Destroyed (1253) 1253 Prototype IDs (25) 500 Alien Tech Used (0) 0 Bonus (-65) -65 TOTAL SCORE: 3393 Bonus ------- Follower Combat Kills 7 Aligned with FarCom 300 Friendly Fire -372 Cogmind --------- Core Integrity 0/400 Matter 300/300 Energy 265/265 System Corruption 0% Temperature Cool (0) Movement Treading (320) Ox2 Location -9/Exiles Parts ------- > --- POWER (1) -------- Reinforced Ion Engine > --- PROPULSION (2) --- Light Treads > --- UTILITY (4) ------ High-capacity Storage Unit Salvage Targeting Computer Core Shielding Light Armor Plating > --- WEAPON (2) ------- Assault Rifle Heavy Assault Rifle > --- INVENTORY (20) --- Light Ion Engine Light Treads Improved Heat Sink Medium Matter Pod (100) Salvage Targeting Computer Core Shielding Weapon Shielding Light Armor Plating Hardened Light Armor Plating Beam Rifle Light Assault Rifle Rocket Launcher YI-UF0's Doublenader Datajack Maul Peak State ------------ > --- POWER ------------ Light Ion Engine > --- PROPULSION ------- Light Treads Light Treads > --- UTILITY ---------- Improved Heat Sink High-capacity Storage Unit Visual Processing Unit Core Shielding > --- WEAPON ----------- Improved EM Shotgun Improved EM Shotgun > --- INVENTORY -------- Light Nuclear Core Light Treads High-capacity Storage Unit Huge Storage Unit Medium Matter Pod Core Shielding Beam Rifle Beam Rifle Beam Rifle Particle Gun Assault Rifle Assault Rifle Light Assault Rifle Heavy Assault Rifle Rocket Launcher Mini Grenade Launcher YI-UF0's Doublenader Datajack Maul [Rating: 19] Favorites ----------- Power Ion Engine Engine Ion Engine Power Core Light Nuclear Core Propulsion Light Treads Treads Light Treads Leg Aluminum Leg Utility High-capacity Storage Unit Device Seismic Detector Storage High-capacity Storage Unit Processor Visual Processing Unit Protection Core Shielding Weapon Assault Rifle Energy Gun Beam Rifle Ballistic Gun Assault Rifle Launcher YI-UF0's Doublenader Build | -11 -10 -10 -9 -9 -9 ------- Run | Scr Mat Min Mat Min Exi Slots Evolved 2 | . . . 2 . . Power . | . . . . . . Propulsion . | . . . . . . Utility 2 | . . . 2 . . Weapon . | . . . . . . Parts Attached 48 | . 2 6 16 21 3 Power 5 | . 1 1 1 2 . Engine 4 | . 1 1 1 1 . Core 1 | . . . . 1 . Reactor . | . . . . . . Propulsion 11 | . 1 4 1 4 1 Treads 8 | . . 2 1 4 1 Leg 3 | . 1 2 . . . Wheel . | . . . . . . Hover . | . . . . . . Flight . | . . . . . . Utility 14 | . . . 8 6 . Device 2 | . . . . 2 . Storage 4 | . . . 3 1 . Processor 2 | . . . 1 1 . Hackware . | . . . . . . Protection 6 | . . . 4 2 . Artifact . | . . . . . . Weapon 18 | . . 1 6 9 2 Energy Gun 7 | . . 1 2 4 . Energy Cannon . | . . . . . . Ballistic Gun 7 | . . . 3 3 1 Ballistic Cannon . | . . . . . . Launcher 4 | . . . 1 2 1 Special Weapon . | . . . . . . Impact Weapon . | . . . . . . Slashing Weapon . | . . . . . . Piercing Weapon . | . . . . . . Special Melee Weapon . | . . . . . . Unidentified Prototypes 2 | . . . 2 . . Parts Lost 19 | . . 1 6 9 3 Power 3 | . . 1 1 1 . Propulsion 7 | . . . 1 4 2 Utility 4 | . . . 2 2 . Weapon 5 | . . . 2 2 1 Highest Loss Streak 4 | . . 1 3 4 2 To Critical Strikes 2 | . . . . . 2 Average Slot Usage (%) 93 | . 85 84 94 96 100 Engine 9 | . 14 13 9 4 11 Core 2 | . . . . 6 . Treads 21 | . . 22 20 21 22 Leg 1 | . 28 5 . . . Device 3 | . . . . 8 . Storage 11 | . 14 14 11 11 11 Processor 8 | . . . 10 10 11 Protection 12 | . . . 19 11 22 Energy Gun 7 | . . 12 4 9 . Ballistic Gun 16 | . 28 15 17 12 21 Naked Turns . | . . . . . . Heaviest Build 95 | 12 14 15 95 60 63 Greatest Support 40 | 20 20 40 40 40 40 Greatest Overweight (x) 4 | . . . 4 2 1 Average Overweight (x) . | . . . 1 1 1 Largest Inventory Capacity 25 | . 8 8 25 20 20 Average Capacity 17 | . 8 8 21 20 20 Most Carried 20 | . 8 8 17 20 20 Average Carried 14 | . 5 7 13 18 19 Final Capacity 20 | 8 8 8 20 20 20 Final Carried 18 | 6 8 7 17 18 15 Class Distribution -------------------- 51% | Mutant 48% | Scavenger-Mutant Dominant Class ---------------- Mutant | -10/Materials Mutant | -10/Mines Mutant | -9/Materials Scavenger-Mutant | -9/Mines Scavenger-Mutant | -9/Exiles Resources | -11 -10 -10 -9 -9 -9 ----------- Run | Scr Mat Min Mat Min Exi Matter Collected 1684 | 171 151 115 422 635 190 Remotely . | . . . . . . Salvage Created 1608 | . 155 221 546 672 14 Parts 96 | . 8 12 44 32 . Haulers Intercepted . | . . . . . . Recyclers Shooed 2 | . 1 1 . . . Parts Field Recycled . | . . . . . . Retrieved Matter . | . . . . . . Parts Self-Destructed . | . . . . . . Prevented . | . . . . . . Kills | -11 -10 -10 -9 -9 -9 ------- Run | Scr Mat Min Mat Min Exi Combat Hostiles Destroyed 46 | . 3 3 14 19 7 Guns 28 | . 3 3 8 14 . AOE 18 | . . . 6 5 7 Classes Destroyed 12 | . 1 2 4 5 . Worker 2 | . . 1 1 . . Builder 1 | . . . 1 . . Tunneler 1 | . . 1 . . . Recycler 1 | . . . . 1 . Watcher 1 | . . . 1 . . Swarmer 3 | . . . 3 . . Grunt 23 | . 3 2 10 8 . Brawler 1 | . . . . 1 . Duelist 1 | . . . . 1 . Sentry 5 | . . . 3 2 . Demolisher 1 | . . . . 1 . Assembled 13 | . . . . 6 7 Best Kill Streak 8 | . 2 2 7 8 7 Combat Bots Only 7 | . 2 2 6 6 7 Max Kills in Single Turn 4 | . 1 1 4 1 3 Gunslinging . | . . . . . . Exploded 3 | . . . 3 1 3 Melee . | . . . . . . Uniques/NPCs Destroyed 1 | . . 1 . . . YI-UF0 (-10/Mines) Combat | -11 -10 -10 -9 -9 -9 -------- Run | Scr Mat Min Mat Min Exi Damage Taken 3022 | . 179 468 672 1039 664 Core 578 | . 77 92 132 184 93 Absorbed by Shields . | . . . . . . Redirected to Shielding 65 | . . . 3 41 21 Core Remaining (%) 66 | 100 . 32 . . . Volleys Fired 162 | . 17 15 50 63 17 Largest 2 | . 2 2 2 2 2 Hottest 112 | . 40 85 85 112 70 Shots Fired 282 | . 34 30 80 110 28 Gun 266 | . 34 30 76 101 25 Cannon . | . . . . . . Launcher 16 | . . . 4 9 3 Special . | . . . . . . Kinetic 203 | . 34 20 69 55 25 Thermal 43 | . . 10 7 26 . Explosive 16 | . . . 4 9 3 Electromagnetic 20 | . . . . 20 . Robot Hit Streak 14 | . 14 6 9 14 8 Robot Miss Streak 7 | . 2 1 4 7 3 Penetration Max . | . . . . . . Secondary Targets 3 | . . . . 3 . Max Gunslinging Chain 1 | . . . . 1 . Shots Hit Robots 193 | . 26 20 52 75 20 Core Hits 110 | . 8 12 32 47 11 Critical Kills 1 | . . . 1 . . Critical Parts Destroyed 2 | . . . 1 1 . Critical Strikes 5 | . . . 2 3 . Burn 2 | . . . . 2 . Destroy 3 | . . . 2 1 . Melee Attacks . | . . . . . . Impact . | . . . . . . Slashing . | . . . . . . Piercing . | . . . . . . Sneak Attacks . | . . . . . . Combat Hostiles . | . . . . . . Follow-up Attacks . | . . . . . . Damage Inflicted 3968 | . 308 284 1371 1458 547 Guns 2546 | . 308 284 652 1031 271 Cannons . | . . . . . . Explosions 1422 | . . . 719 427 276 Melee . | . . . . . . Ramming . | . . . . . . Kinetic 1838 | . 308 191 589 479 271 Thermal 467 | . . 93 63 311 . Explosive 1370 | . . . 719 375 276 Electromagnetic 293 | . . . . 293 . Impact . | . . . . . . Slashing . | . . . . . . Piercing . | . . . . . . Highest Corruption . | . . . . . . Average Corruption . | . . . . . . Corruption Purged . | . . . . . . Corruption Blocked . | . . . . . . Overload Shots . | . . . . . . Overflow Damage . | . . . . . . Projectiles . | . . . . . . Explosions . | . . . . . . Melee . | . . . . . . Knockbacks . | . . . . . . Impact . | . . . . . . Kinetic . | . . . . . . Secondary . | . . . . . . Self-Inflicted Damage 32 | . . . 14 10 8 Shots 3 | . . . 1 1 1 Rammed . | . . . . . . Targets Rammed . | . . . . . . Kicked . | . . . . . . Crushed . | . . . . . . Highest Temperature 295 | . 2 109 129 295 76 Average Temperature 55 | . 2 45 37 68 36 Received Heat Transfer 702 | . 99 36 327 240 . Effects 4 | . . . . 4 . Interference 4 | . . . . 4 . Siege Activations . | . . . . . . Robots Corrupted . | . . . . . . Combat Hostiles . | . . . . . . Parts Fried 1 | . . . . 1 . Impact Corruptions . | . . . . . . Robots Melted . | . . . . . . Combat Hostiles . | . . . . . . Parts Melted 1 | . . . . 1 . Heat Transferred 1234 | . . 222 148 864 . Parts Sabotaged . | . . . . . . Parts Stolen . | . . . . . . Parts Stripped . | . . . . . . Power Chain Reactions 1 | . . . . 1 . Missiles Intercepted . | . . . . . . Alert | -11 -10 -10 -9 -9 -9 ------- Run | Scr Mat Min Mat Min Exi Peak Influence 375 | . 115 104 375 156 . Initial 44 | . . 44 . . . Average 70 | . 63 24 176 41 . Maximum Alert Level 1 | . . . 1 . . Low Security (%) 88 | . 100 100 53 100 . Level 1 11 | . . . 46 . . Level 2 . | . . . . . . Level 3 . | . . . . . . Level 4 . | . . . . . . Level 5 . | . . . . . . High Security . | . . . . . . Max Security . | . . . . . . Squads Dispatched 2 | . 1 . 1 . . Investigation . | . . . . . . Extermination . | . . . . . . Reinforcement 2 | . 1 . 1 . . Assault . | . . . . . . Garrison . | . . . . . . Intercept . | . . . . . . Searches Triggered . | . . . . . . Construction Impeded . | . . . . . . Haulers Reinforced . | . . . . . . Active Scanning Responses . | . . . . . . Cargo Convoy Interrupts . | . . . . . . Stealth | -11 -10 -10 -9 -9 -9 --------- Run | Scr Mat Min Mat Min Exi Distress Signals 2 | . . . 1 1 . Communications Jammed . | . . . . . . Distress Signals . | . . . . . . Times Spotted 65 | . 5 3 24 28 5 Peak Tracking Total 9 | . 2 1 8 5 9 Tactical Retreats 2 | . . . . 2 . Traps | -11 -10 -10 -9 -9 -9 ------- Run | Scr Mat Min Mat Min Exi Traps Triggered . | . . . . . . Indirectly . | . . . . . . Trap Hack Attempts . | . . . . . . Triggered . | . . . . . . Disarmed . | . . . . . . Reprogrammed . | . . . . . . Reused . | . . . . . . Traps Extracted . | . . . . . . Installed . | . . . . . . Triggered . | . . . . . . Exploded 3 | . . . . . 3 Machines | -11 -10 -10 -9 -9 -9 ---------- Run | Scr Mat Min Mat Min Exi Machines Disabled 5 | . . . 2 . 3 Max in Single Turn 2 | . . . 2 . 1 Machines Sabotaged . | . . . . . . Garrisons Compromised . | . . . . . . Overloaded Fab Kills . | . . . . . . Hacking | -11 -10 -10 -9 -9 -9 --------- Run | Scr Mat Min Mat Min Exi Machines Accessed 7 | . 3 . 2 . 2 Terminals 4 | . 3 . 1 . . Fabricators . | . . . . . . Repair Stations . | . . . . . . Recycling Units 1 | . . . 1 . . Scanalyzers . | . . . . . . Garrison Access . | . . . . . . Total Hacks 16 | . 7 . 7 . 2 Successful 10 | . 3 . 5 . 2 Failed 6 | . 4 . 2 . . Catastrophic 1 | . 1 . . . . Database Lockouts . | . . . . . . Manual 9 | . 5 . 3 . 1 Terminals 10 | . 7 . 3 . . Fabricators . | . . . . . . Repair Stations . | . . . . . . Recycling Units 4 | . . . 4 . . Scanalyzers . | . . . . . . Garrison Access . | . . . . . . Terminal Hacks 4 | . 1 . 1 . 2 Record 1 | . . . . . 1 Branch Access Points 1 | . 1 . . . . Unreport Threat 1 | . . . 1 . . EX-Prototype ID Bank 1 | . . . . . 1 Fabricator Hacks . | . . . . . . Repair Station Hacks . | . . . . . . Recycling Unit Hacks 4 | . . . 4 . . Process 1 | . . . 1 . . Report Inventory 1 | . . . 1 . . Retrieve Matter 2 | . . . 2 . . Scanalyzer . | . . . . . . Garrison Access Hacks . | . . . . . . Unauthorized Hacks 2 | . 2 . . . . Terminals 2 | . 2 . . . . Botnet 2 | . 2 . . . . Fabricators . | . . . . . . Repair Stations . | . . . . . . Recycling Units . | . . . . . . Scanalyzers . | . . . . . . Garrison Access . | . . . . . . Data Cores Recovered . | . . . . . . Used . | . . . . . . Hacking Detections 3 | . 2 . 1 . . Full Trace Events . | . . . . . . Feedback Events . | . . . . . . Feedback Blocked . | . . . . . . Robot Schematics Acquired . | . . . . . . Robots Built . | . . . . . . Authchips . | . . . . . . Time . | . . . . . . Total Robot Build Rating . | . . . . . . Part Schematics Acquired . | . . . . . . Parts Built . | . . . . . . Authchips . | . . . . . . Time . | . . . . . . Total Part Build Rating . | . . . . . . Parts Repaired . | . . . . . . Time . | . . . . . . Parts Recycled . | . . . . . . Recycled Matter 15 | . . . 15 . . Retrieved Matter 15 | . . . 15 . . Retrieved Components . | . . . . . . Parts Scanalyzed . | . . . . . . Part Schematics Acquired . | . . . . . . Parts Damaged . | . . . . . . Bothacking | -11 -10 -10 -9 -9 -9 ------------ Run | Scr Mat Min Mat Min Exi Used RIF Installer . | . . . . . . Robots Hacked . | . . . . . . Non-combat . | . . . . . . Combat . | . . . . . . Robot Hacks Applied . | . . . . . . Relay Couplers Released . | . . . . . . Fabnet Peak Effective % . | . . . . . . Robots Rewired . | . . . . . . Allies Hacked . | . . . . . . Hacks Repelled . | . . . . . . Allies | -11 -10 -10 -9 -9 -9 -------- Run | Scr Mat Min Mat Min Exi Total Allies 3 | . . 3 . . . Largest Group 3 | . . 3 3 . . Highest-Rated Group 40 | . . 40 40 . . Highest-Rated Ally 16 | . . 16 16 . . Total Orders . | . . . . . . Ally Attacks 10 | . . . 10 . . Total Damage 58 | . . . 58 . . Kills 1 | . . . 1 . . Allies Corrupted . | . . . . . . Allies Melted . | . . . . . . Intel | -11 -10 -10 -9 -9 -9 ------- Run | Scr Mat Min Mat Min Exi Robot Analysis Total . | . . . . . . Derelict Logs Recovered 2 | . . 1 . 1 . Drone Launches . | . . . . . . Drone Recoveries . | . . . . . . Exploration | -11 -10 -10 -9 -9 -9 ------------- Run | Scr Mat Min Mat Min Exi Turns Passed 6236 | . 171 1370 1217 2212 1266 Spaces Moved 2667 | 1 92 867 395 822 490 Core . | . . . . . . Treads 2384 | . . 677 395 822 490 Legs 283 | 1 92 190 . . . Wheels . | . . . . . . Hover . | . . . . . . Flight . | . . . . . . Fastest Speed 120 | 120 120 120 160 240 240 Average Speed 210 | 120 120 151 264 240 240 Slowest Speed 480 | 120 120 160 480 320 240 Overloaded Moves . | . . . . . . Propulsion Burnouts . | . . . . . . Robots Hopped . | . . . . . . Cave-ins Triggered . | . . . . . . Exploration Rate (%) 56 | 2 32 99 34 99 75 Regions Visited 5 Branch Regions 3 Pre-discovered Areas 2 | . . . . 1 1 Known Exits Taken 1 | . 1 . . . . Unknown Exits Taken 4 | 1 . 1 1 1 . Scrap Searched 2 | . . 1 . 1 . Spaces Dug 1 | . . . . 1 . Terrain Destroyed 113 | . . . 23 75 15 Melee . | . . . . . . Projectile . | . . . . . . AOE 113 | . . . 23 75 15 Terrain Rammed . | . . . . . . Walls Destroyed . | . . . . . . Machines Disabled . | . . . . . . Actions | -11 -10 -10 -9 -9 -9 --------- Run | Scr Mat Min Mat Min Exi Total 3008 | . 120 898 483 950 557 Wait 61 | . 2 1 7 19 32 Move 2662 | . 91 866 394 821 490 Hop . | . . . . . . Pick Up 44 | . 4 4 13 16 7 Fast Attach 11 | . . . 7 4 . Attach 18 | . . 3 5 8 2 Detach 1 | . . . 1 . . Swap 19 | . 2 3 4 9 1 Drop 30 | . 4 6 2 10 8 Fire 162 | . 17 15 50 63 17 Melee . | . . . . . . Ram . | . . . . . . Kick . | . . . . . . Crush . | . . . . . . Escape Stasis . | . . . . . . Rewire . | . . . . . . Trap . | . . . . . . Miscellaneous . | . . . . . . Route ------- -11/Scrapyard -10/Materials (discovered 2 exits: *Min x2) -10/Mines (discovered 2 exits: *Mat x2) -9/Materials -9/Mines (discovered 4 exits: [*Mat x2] / *Exi / [*Zio]) -9/Exiles (discovered 1 exit: [*Min]) History --------- Turn | Location | Event 1 | -11/Scrapyard | Discovered new exit (range 0) 1 | -11/Scrapyard | Entered Materials 14 | -10/Materials | Identified exit to Mines 172 | -10/Materials | Entered Mines 292 | -10/Mines | Learned Materials stockpile data 371 | -10/Mines | Discovered new exit (range 15) 426 | -10/Mines | Discovered new exit (range 8) 600 | -10/Mines | Core integrity fell below 50% 606 | -10/Mines | Destroyed YI-UF0 623 | -10/Mines | Found Prototype Launcher 730 | -10/Mines | Build established: Mutant 1290 | -10/Mines | Assisted by bots powering up and referring to "LRC-V3" 1542 | -10/Mines | Entered Materials 1542 | -9/Materials | Accompanied by 3 allies 1542 | -9/Materials | Evolved 2 slots: Utility x2 1590 | -9/Materials | Discovered new exit (range 18) 1604 | -9/Materials | Identified YI-UF0's Doublenader 2439 | -9/Materials | Lost 3 parts (1p1u1w) 2759 | -9/Materials | Entered Mines 2930 | -9/Mines | Discovered new exit (range 9) 2955 | -9/Mines | Learned location of Storage (-7) 3038 | -9/Mines | Received a Rocket Launcher from a helpful Derelict 3082 | -9/Mines | Assembled infested the area 3087 | -9/Mines | Assisted by a Guerilla fighting off Assembled 3157 | -9/Mines | Core integrity fell below 50% 3167 | -9/Mines | Lost 4 parts (1p1n1u1w) 3410 | -9/Mines | Discovered new exit (range 13) 3458 | -9/Mines | Learned location of 1 exit from Materials 3480 | -9/Mines | Deemed a non-threat by the Exiles lab entrance 3647 | -9/Mines | Build established: Scavenger-Mutant 4038 | -9/Mines | A Derelict revealed a hidden shortcut to a safe place 4958 | -9/Mines | Discovered new exit (range 5) 4971 | -9/Mines | Entered Exiles 5003 | -9/Exiles | Discovered new exit (range 15) 5062 | -9/Exiles | Met 8R-AWN 5091 | -9/Exiles | Met EX-HEX 5168 | -9/Exiles | Met EX-BIN 5201 | -9/Exiles | Aligned with FarCom system 5204 | -9/Exiles | Given EX-Vault access code 5264 | -9/Exiles | Opened EX-Vault 5319 | -9/Exiles | Warned to stay clear of 0b10 Research branches 5645 | -9/Exiles | Met EX-DEC 5661 | -9/Exiles | Learned location of Zion (-7) 5756 | -9/Exiles | Visited The Gauntlet 6115 | -9/Exiles | Attacked by the Exiles 6176 | -9/Exiles | Destroyed 7 combat bots 6206 | -9/Exiles | Core integrity fell below 20% 6237 | -9/Exiles | Destroyed by 8R-AWN with 8R-AWN's Boregun Last Messages --------------- 06225_ Extracted 6 matter. 06226_ HV Slug penetrates Wall. 06228_ Extracted 6 matter. 06228_ Penetrated by HV Slug. 06228_ HV Slug penetrates Earth. 06228_ Penetrated by HV Slug. 06228_ HV Slug penetrates Earth. 06230_ Penetrated by HV Slug. 06230_ HV Slug penetrates Earth. 06230_ Penetrated by HV Slug. 06230_ HV Slug penetrates Earth. 06231_ Extracted 6 matter. 06232_ Penetrated by HV Slug. 06232_ Critical hit (Destroy). 06234_ Extracted 6 matter. 06235_ Penetrated by HV Slug. 06235_ Critical hit (Destroy). 06235_ Lgt. Treads destroyed. 06237_ Extracted 6 matter. 06237_ Penetrated by HV Slug. Map ----- +----------------------------------------------------+ | ?????????????????????????????????????????????????? | | ?????????????????????????????????????????????????? | | ?????????????????????????????????????????????????? | | ?????????????????????????????????????????????????? | | ?????????????????????????????????????????????????? | | ?????????????????????????????????????????????????? | | ?????????????????????????????????????????????????? | | ?????????????????????????????????????????????????? | | ?????????????????????????????????????????????????? | | ?????????????????????????????????????????????????? | | ?????????????????????????????#######?????????????? | | ??????????????? ######???????#! "#?????????????? | | ??????????????? #""#??????# "#?????????????? | | ?????????????? ??????# "#?????????????? | | ?????????????? #????## ""#?????????????# | | ?????????????? #####" ""#????????????? | | ??????????????# ##" ""#????????????" | | ???????????????# #"" ###????????????" | | ??????????????????# #??????????????" | | ?????????????????????# ##?????????????" | | ?????????????????????### "####????????? | | ???????????????########" ####???????" | | ???????????????# !!"""" #???????# | | ???????????????#! g"###"" ###???### | | ???????????????#! ! #?##" ""#####X# | | ???????????????#! @##??#" | | ???????????????# !""""""#;#???#"# | | ???????????????########## #???### | | ????????????????????????# #??????## | | ????????????????????????# #????????# | | ????????????????????????# #?????????# | | ????????????????????????# #?????????? | | ????????????????????????# #???????????## | | ????????????????????????# #?????????????#"" | | ????????????????????????? ?????????????##" | | ????????????????????????? ?????????????#"" | | ????????????????????????? ????????????##""" | | ????????????????????????? ????????????#""" | | ????????????????????????? ????????????#""" | | ????????????????????????? ????????????#"" | | ????????????????????????? ????????????#""" | | ??????????????????????????????????????#"" | | ??????????????????????????????????????##"" | | ???????????????????????????????????????#"""" | | ???????????????????????????????????????## | | ????????????????????????????????????????#" | | ????????????????????????????????????????#"""" | | ????????????????????????????????????????#"" | | ????????????????????????????????????????#" | | ????????????????????????????????????????#""" | +----------------------------------------------------+ Best States ------------- Heat Dissipation 42 Energy Generation 14 Energy Capacity 265 Matter Stores 300 Matter Capacity 300 Sight Range 18 Terrain Scan Density 10 Armor Coverage 300 Core Shielding 20 Evasion (%) 55 Recoil Reduction 2 Salvage Targeting 1 Item Schematics ----------------- None Robot Schematics ------------------ None Fabricated ------------ Nothing Alien Tech Used ----------------- None Achievements -------------- None Challenges ------------ None Game ------ Seed ParticleColdMinigun Manual? 0 Play Time 00:21:34 Cumulative 328.7 hours Start 2022.05.04 @ 14:08:52 End 2022.05.04 @ 14:28:01 Sessions 1 Manual Loads 0 Difficulty Rogue Special Mode None Game No. 363 Rogue 363 Adventurer 0 Explorer 0 Win Type - Total 28 Types 17/3/2/1/2/0/3/0/0 Lore% 86 Gallery% 84 Achievement% 80 Wizard Run 0 Options --------- ASCII 0 Keyboard 0 Movement Arrows Keybinds 0 Fullscreen 2 Font 18/SmallcapsGlow Map View 76x50 Tactical HUD 1 Map Filters NONE Filters NONE Steam 1 RUN: e4b94862-3c79-45e5-ada9-64288f864878